[Event "Early-Titled-Tuesday-Blitz-February-13-2024"]
[Site "Chess.com"]
[Date "2024.02.13"]
[Round "5"]
[White "GrumbleBruno"]
[Black "viktorskliarov"]
[Result "1-0"]
[WhiteElo "2474"]
[BlackElo "2591"]
[TimeControl "180+1"]
[EndTime "9:01:25 PST"]
[Termination "GrumbleBruno won by resignation"]

1. e4 {[%clk 0:03:00.9]} 1... c5 {[%clk 0:02:54.7]} 2. c3 {[%clk 0:03:00.7]}
2... d6 {[%clk 0:02:54.8]} 3. d4 {[%clk 0:03:00.5]} 3... Nf6 {[%clk 0:02:54.1]}
4. Bd3 {[%clk 0:03:00.6]} 4... g6 {[%clk 0:02:52.7]} 5. dxc5 {[%clk 0:03:00.4]}
5... dxc5 {[%clk 0:02:52.4]} 6. e5 {[%clk 0:03:00.7]} 6... Nh5 {[%clk
0:02:49.6]} 7. f4 {[%clk 0:02:54.3]} 7... Nc6 {[%clk 0:02:29.6]} 8. Nf3 {[%clk
0:02:52.4]} 8... Bf5 {[%clk 0:01:49.1]} 9. Bxf5 {[%clk 0:02:22.5]} 9... Qxd1+
{[%clk 0:01:50]} 10. Kxd1 {[%clk 0:02:22.3]} 10... gxf5 {[%clk 0:01:50.9]} 11.
Be3 {[%clk 0:02:20.5]} 11... b6 {[%clk 0:01:43.2]} 12. Nbd2 {[%clk 0:02:18.7]}
12... Bh6 {[%clk 0:01:05.2]} 13. g3 {[%clk 0:02:14.6]} 13... f6 {[%clk
0:01:01.2]} 14. Re1 {[%clk 0:01:44.7]} 14... fxe5 {[%clk 0:00:46.3]} 15. fxe5
{[%clk 0:01:32.2]} 15... Bxe3 {[%clk 0:00:46.2]} 16. Rxe3 {[%clk 0:01:32.5]}
16... e6 {[%clk 0:00:47.1]} 17. Kc2 {[%clk 0:01:23.4]} 17... Rd8 {[%clk
0:00:31.6]} 18. Nc4 {[%clk 0:01:17.1]} 18... O-O {[%clk 0:00:29.7]} 19. a4
{[%clk 0:01:15.7]} 19... f4 {[%clk 0:00:18.7]} 20. gxf4 {[%clk 0:01:00.9]} 20...
Rxf4 {[%clk 0:00:18.7]} 21. Rg1+ {[%clk 0:00:58.3]} 21... Kf8 {[%clk 0:00:16.2]}
22. Ng5 {[%clk 0:00:50.4]} 22... Rxc4 {[%clk 0:00:12.2]} 23. Nxe6+ {[%clk
0:00:42.8]} 23... Ke7 {[%clk 0:00:12.7]} 24. Nxd8 {[%clk 0:00:42]} 24... Nxd8
{[%clk 0:00:13.6]} 25. Rh3 {[%clk 0:00:41]} 25... Nf4 {[%clk 0:00:09.8]} 26.
Rxh7+ {[%clk 0:00:40.6]} 26... Ke6 {[%clk 0:00:08.1]} 27. Rxa7 {[%clk
0:00:33.9]} 27... Nc6 {[%clk 0:00:05.9]} 28. Rb7 {[%clk 0:00:29.9]} 28... Nxe5
{[%clk 0:00:05.6]} 29. Rxb6+ {[%clk 0:00:29.2]} 29... Kf5 {[%clk 0:00:06.2]} 30.
Re1 {[%clk 0:00:23.2]} 30... Rxa4 {[%clk 0:00:05.8]} 31. Rb5 {[%clk 0:00:21.6]}
31... Ned3 {[%clk 0:00:05.9]} 32. Rd1 {[%clk 0:00:20.7]} 32... Nf2 {[%clk
0:00:03.1]} 33. Rxc5+ {[%clk 0:00:19.9]} 33... Kg4 {[%clk 0:00:03.7]} 34. Rd4
{[%clk 0:00:19]} 34... Rxd4 {[%clk 0:00:03.1]} 35. cxd4 {[%clk 0:00:19.4]} 35...
Kf3 {[%clk 0:00:03.1]} 36. b4 {[%clk 0:00:19.3]} 36... Ke4 {[%clk 0:00:03.3]}
37. Kc3 {[%clk 0:00:16.4]} 37... Nd5+ {[%clk 0:00:03.3]} 38. Kc4 {[%clk
0:00:16.1]} 38... Ne3+ {[%clk 0:00:03.7]} 39. Kb3 {[%clk 0:00:16.1]} 39... Kxd4
{[%clk 0:00:03.9]} 40. Rg5 {[%clk 0:00:15.5]} 40... Nd3 {[%clk 0:00:04]} 41. h4
{[%clk 0:00:14.6]} 41... Nd5 {[%clk 0:00:03.3]} 42. h5 {[%clk 0:00:14.5]} 42...
N5xb4 {[%clk 0:00:01.9]} 43. h6 {[%clk 0:00:14.5]} 43... Nd5 {[%clk 0:00:02]}
44. h7 {[%clk 0:00:14.3]} 44... Ne3 {[%clk 0:00:02.2]} 45. h8=Q+ {[%clk
0:00:14.3]} 45... Ke4 {[%clk 0:00:02.9]} 46. Qe8+ {[%clk 0:00:14.1]} 46... Kf3
{[%clk 0:00:03.4]} 47. Rg8 {[%clk 0:00:12.7]} 47... Nf4 {[%clk 0:00:03.6]} 48.
Rf8 {[%clk 0:00:12.2]} 48... Ng2 {[%clk 0:00:03.6]} 49. Qe5 {[%clk 0:00:12.1]}
49... Kg4 {[%clk 0:00:03.3]} 50. Rxf4+ {[%clk 0:00:12]} 50... Nxf4 {[%clk
0:00:03.5]} 51. Kc4 {[%clk 0:00:12.6]} 51... Kf3 {[%clk 0:00:03.7]} 52. Kd4
{[%clk 0:00:12.3]} 52... Ne2+ {[%clk 0:00:04.2]} 53. Kd3 {[%clk 0:00:12.1]}
53... Nf4+ {[%clk 0:00:04.8]} 54. Kd2 {[%clk 0:00:12.3]} 54... Kg4 {[%clk
0:00:04.4]} 55. Qe4 {[%clk 0:00:12.4]} 55... Kg3 {[%clk 0:00:04]} 56. Ke3 {[%clk
0:00:12.5]} 56... Ng2+ {[%clk 0:00:04.5]} 57. Kd4 {[%clk 0:00:12.7]} 57... Nf4
{[%clk 0:00:04.6]} 58. Ke5 {[%clk 0:00:12.9]} 58... Ng2 {[%clk 0:00:05]} 59. Kf5
{[%clk 0:00:12.9]} 59... Kf2 {[%clk 0:00:05]} 60. Kg4 {[%clk 0:00:12.4]} 60...
Ne3+ {[%clk 0:00:05.4]} 61. Kh3 {[%clk 0:00:11.3]} 61... Nf1 {[%clk 0:00:04.9]}
62. Qc2+ {[%clk 0:00:10.5]} 62... Ke1 {[%clk 0:00:04.5]} 63. Qa2 {[%clk
0:00:07.8]} 63... Kd1 {[%clk 0:00:03.8]} 64. Kg2 {[%clk 0:00:07.5]} 64... Ne3+
{[%clk 0:00:03.7]} 65. Kf3 {[%clk 0:00:07.6]} 65... Nc2 {[%clk 0:00:03.7]} 66.
Ke4 {[%clk 0:00:06.1]} 66... Kd2 {[%clk 0:00:04.1]} 67. Qb2 {[%clk 0:00:05]}
67... Kd1 {[%clk 0:00:02.8]} 68. Kd3 {[%clk 0:00:04.6]} 68... Ne1+ {[%clk
0:00:03.3]} 69. Kc3 {[%clk 0:00:04.9]} 69... Nf3 {[%clk 0:00:03.5]} 70. Qf2
{[%clk 0:00:03.9]} 70... Kc1 {[%clk 0:00:02.6]} 71. Qf1+ {[%clk 0:00:02.9]} 1-0

[Event "Early-Titled-Tuesday-Blitz-February-13-2024"]
[Site "Chess.com"]
[Date "2024.02.13"]
[Round "5"]
[White "Chessdude1987"]
[Black "campochess"]
[Result "0-1"]
[WhiteElo "2371"]
[BlackElo "2142"]
[TimeControl "180+1"]
[EndTime "9:01:34 PST"]
[Termination "campochess won by checkmate"]

1. e4 {[%clk 0:03:00.9]} 1... c5 {[%clk 0:02:49.6]} 2. Nf3 {[%clk 0:03:00.5]}
2... Nc6 {[%clk 0:02:49.6]} 3. d4 {[%clk 0:03:00.7]} 3... cxd4 {[%clk
0:02:49.7]} 4. Nxd4 {[%clk 0:03:01.6]} 4... e5 {[%clk 0:02:49.3]} 5. Nb5 {[%clk
0:03:00.5]} 5... a6 {[%clk 0:02:49.5]} 6. Nd6+ {[%clk 0:03:00.5]} 6... Bxd6
{[%clk 0:02:49.5]} 7. Qxd6 {[%clk 0:03:01.4]} 7... Qe7 {[%clk 0:02:49.5]} 8. Qd1
{[%clk 0:03:00.9]} 8... Nf6 {[%clk 0:02:48.4]} 9. Nc3 {[%clk 0:03:01]} 9... h6
{[%clk 0:02:47.9]} 10. Bd3 {[%clk 0:02:53.6]} 10... d6 {[%clk 0:02:47.8]} 11.
O-O {[%clk 0:02:52.5]} 11... O-O {[%clk 0:02:46.2]} 12. h3 {[%clk 0:02:51.5]}
12... Be6 {[%clk 0:02:44.9]} 13. Kh1 {[%clk 0:02:50.5]} 13... Rad8 {[%clk
0:02:43.4]} 14. f4 {[%clk 0:02:50.1]} 14... d5 {[%clk 0:02:41.9]} 15. fxe5
{[%clk 0:02:50.1]} 15... Nxe5 {[%clk 0:02:40.7]} 16. exd5 {[%clk 0:02:41.4]}
16... Nxd5 {[%clk 0:02:39.5]} 17. Nxd5 {[%clk 0:02:38.4]} 17... Rxd5 {[%clk
0:02:38.7]} 18. Be3 {[%clk 0:02:32]} 18... Nxd3 {[%clk 0:02:38.6]} 19. cxd3
{[%clk 0:02:32]} 19... Rfd8 {[%clk 0:02:38.3]} 20. d4 {[%clk 0:02:31.7]} 20...
Qb4 {[%clk 0:02:26.3]} 21. b3 {[%clk 0:02:24]} 21... Rf5 {[%clk 0:02:25.3]} 22.
Rxf5 {[%clk 0:02:20.4]} 22... Bxf5 {[%clk 0:02:24.6]} 23. Rc1 {[%clk 0:02:20.2]}
23... Qe7 {[%clk 0:02:19.6]} 24. Qf3 {[%clk 0:02:16.2]} 24... Be4 {[%clk
0:02:18]} 25. Qg3 {[%clk 0:02:13.8]} 25... Bc6 {[%clk 0:02:06.1]} 26. Bxh6
{[%clk 0:02:11.3]} 26... Qf6 {[%clk 0:01:53.9]} 27. Bg5 {[%clk 0:01:50.6]} 27...
Qg6 {[%clk 0:01:51.7]} 28. Kh2 {[%clk 0:01:50.7]} 28... Rxd4 {[%clk 0:01:48.2]}
29. Rc3 {[%clk 0:01:42.3]} 29... Re4 {[%clk 0:01:37.9]} 30. Rd3 {[%clk
0:01:31.7]} 30... f6 {[%clk 0:01:32.3]} 31. Rd8+ {[%clk 0:01:30.7]} 31... Kh7
{[%clk 0:01:28]} 32. Bf4 {[%clk 0:00:57.2]} 32... Qxg3+ {[%clk 0:01:26.7]} 33.
Kxg3 {[%clk 0:00:56.7]} 33... Re2 {[%clk 0:01:26.4]} 34. Bc7 {[%clk 0:00:52.8]}
34... Rxg2+ {[%clk 0:01:23.8]} 35. Kf4 {[%clk 0:00:53.1]} 35... Rxa2 {[%clk
0:01:21.7]} 36. Rd3 {[%clk 0:00:50.5]} 36... Kg6 {[%clk 0:01:05.6]} 37. Bb6
{[%clk 0:00:43.6]} 37... Kf7 {[%clk 0:00:59.6]} 38. h4 {[%clk 0:00:42.9]} 38...
Rg2 {[%clk 0:00:48.1]} 39. Bc5 {[%clk 0:00:38.3]} 39... g5+ {[%clk 0:00:47.7]}
40. hxg5 {[%clk 0:00:38.3]} 40... fxg5+ {[%clk 0:00:47.8]} 41. Kf5 {[%clk
0:00:36.8]} 41... Rc2 {[%clk 0:00:40.8]} 42. b4 {[%clk 0:00:34.9]} 42... a5
{[%clk 0:00:37.7]} 43. Kxg5 {[%clk 0:00:29]} 43... axb4 {[%clk 0:00:30.1]} 44.
Bxb4 {[%clk 0:00:28.8]} 44... Rf2 {[%clk 0:00:22.3]} 45. Bc5 {[%clk 0:00:17.2]}
45... Rf1 {[%clk 0:00:18.9]} 46. Rd2 {[%clk 0:00:17.2]} 46... Ke6 {[%clk
0:00:18.9]} 47. Bf2 {[%clk 0:00:16.8]} 47... Ke5 {[%clk 0:00:12.8]} 48. Re2+
{[%clk 0:00:16.7]} 48... Kd5 {[%clk 0:00:12.3]} 49. Kf4 {[%clk 0:00:17]} 49...
Kc4 {[%clk 0:00:12]} 50. Ke3 {[%clk 0:00:17]} 50... Rb1 {[%clk 0:00:11.3]} 51.
Rc2+ {[%clk 0:00:16.8]} 51... Kb3 {[%clk 0:00:10.1]} 52. Rd2 {[%clk 0:00:16.7]}
52... Rb2 {[%clk 0:00:09.5]} 53. Rd3+ {[%clk 0:00:16]} 53... Kc4 {[%clk
0:00:07.7]} 54. Rd4+ {[%clk 0:00:15.7]} 54... Kb5 {[%clk 0:00:07.9]} 55. Bg3
{[%clk 0:00:15.1]} 55... Rb3+ {[%clk 0:00:05.4]} 56. Kf2 {[%clk 0:00:14.2]}
56... Rf3+ {[%clk 0:00:03.7]} 57. Ke2 {[%clk 0:00:14.2]} 57... Rxg3 {[%clk
0:00:02.6]} 58. Kd2 {[%clk 0:00:14.1]} 58... Rg2+ {[%clk 0:00:02.3]} 59. Kc3
{[%clk 0:00:14.2]} 59... Kb6 {[%clk 0:00:02.4]} 60. Kb4 {[%clk 0:00:14.3]} 60...
Kc7 {[%clk 0:00:02.7]} 61. Kc3 {[%clk 0:00:14.4]} 61... Rg3+ {[%clk 0:00:02.7]}
62. Kd2 {[%clk 0:00:14.5]} 62... b5 {[%clk 0:00:02.8]} 63. Rb4 {[%clk
0:00:14.2]} 63... Kb6 {[%clk 0:00:02.8]} 64. Rb2 {[%clk 0:00:14.1]} 64... Rg2+
{[%clk 0:00:01.3]} 65. Kc3 {[%clk 0:00:14.1]} 65... Rxb2 {[%clk 0:00:02.2]} 66.
Kxb2 {[%clk 0:00:13.6]} 66... Kc5 {[%clk 0:00:02.8]} 67. Kc3 {[%clk 0:00:13.7]}
67... b4+ {[%clk 0:00:03.4]} 68. Kb2 {[%clk 0:00:14]} 68... Kc4 {[%clk
0:00:03.5]} 69. Kc2 {[%clk 0:00:14.4]} 69... b3+ {[%clk 0:00:03.8]} 70. Kb2
{[%clk 0:00:14.7]} 70... Kb4 {[%clk 0:00:04.1]} 71. Kc1 {[%clk 0:00:14.9]} 71...
Kc3 {[%clk 0:00:03.3]} 72. Kd1 {[%clk 0:00:13.2]} 72... b2 {[%clk 0:00:02.8]}
73. Ke2 {[%clk 0:00:13.4]} 73... b1=Q {[%clk 0:00:02.5]} 74. Kf2 {[%clk
0:00:14]} 74... Qe4 {[%clk 0:00:01.9]} 75. Kg3 {[%clk 0:00:14]} 75... Qf3+
{[%clk 0:00:01.6]} 76. Kh4 {[%clk 0:00:14]} 76... Qg2 {[%clk 0:00:01.6]} 77. Kh5
{[%clk 0:00:14]} 77... Kd4 {[%clk 0:00:01.9]} 78. Kh6 {[%clk 0:00:14.2]} 78...
Ke5 {[%clk 0:00:02.1]} 79. Kh7 {[%clk 0:00:14.4]} 79... Kf6 {[%clk 0:00:02]} 80.
Kh8 {[%clk 0:00:14.7]} 80... Qg7# {[%clk 0:00:02.1]} 0-1

[Event "Early-Titled-Tuesday-Blitz-February-13-2024"]
[Site "Chess.com"]
[Date "2024.02.13"]
[Round "5"]
[White "inagreV"]
[Black "GameOverBro"]
[Result "1-0"]
[WhiteElo "2360"]
[BlackElo "2533"]
[TimeControl "180+1"]
[EndTime "9:01:43 PST"]
[Termination "inagreV won on time"]

1. e4 {[%clk 0:03:00.9]} 1... c5 {[%clk 0:02:59.7]} 2. Nf3 {[%clk 0:03:00]} 2...
Nc6 {[%clk 0:03:00.2]} 3. Bb5 {[%clk 0:02:59.6]} 3... Qc7 {[%clk 0:02:59]} 4.
O-O {[%clk 0:02:56.5]} 4... g6 {[%clk 0:02:57.3]} 5. Nc3 {[%clk 0:02:54.8]} 5...
a6 {[%clk 0:02:51.8]} 6. Bxc6 {[%clk 0:02:54.1]} 6... Qxc6 {[%clk 0:02:48.3]} 7.
d4 {[%clk 0:02:53.8]} 7... Bg7 {[%clk 0:02:34]} 8. dxc5 {[%clk 0:02:21.3]} 8...
Bxc3 {[%clk 0:02:13.5]} 9. bxc3 {[%clk 0:02:21.3]} 9... Nf6 {[%clk 0:01:58.1]}
10. Qd4 {[%clk 0:02:00.2]} 10... Qxe4 {[%clk 0:01:46.4]} 11. Re1 {[%clk
0:01:59]} 11... Qxd4 {[%clk 0:01:43.6]} 12. cxd4 {[%clk 0:01:56.7]} 12... h6
{[%clk 0:01:23.4]} 13. Rb1 {[%clk 0:01:49.4]} 13... Kf8 {[%clk 0:01:09.5]} 14.
Ba3 {[%clk 0:01:40.9]} 14... Ng8 {[%clk 0:00:56.4]} 15. Ne5 {[%clk 0:01:19.4]}
15... Rh7 {[%clk 0:00:52]} 16. Nc4 {[%clk 0:01:09.3]} 16... b5 {[%clk
0:00:31.7]} 17. cxb6 {[%clk 0:01:08.6]} 17... Bb7 {[%clk 0:00:30.2]} 18. Na5
{[%clk 0:01:08.4]} 18... Rb8 {[%clk 0:00:27]} 19. c4 {[%clk 0:01:07.3]} 19... f5
{[%clk 0:00:25]} 20. f3 {[%clk 0:00:47.8]} 20... Nf6 {[%clk 0:00:25.4]} 21. d5
{[%clk 0:00:27.3]} 21... Ne8 {[%clk 0:00:23.4]} 22. Rbd1 {[%clk 0:00:16.9]}
22... d6 {[%clk 0:00:22.7]} 23. Re6 {[%clk 0:00:16]} 23... g5 {[%clk 0:00:21]}
24. Rde1 {[%clk 0:00:15.5]} 24... Bc8 {[%clk 0:00:17.3]} 25. R6e2 {[%clk
0:00:10.6]} 25... Rxb6 {[%clk 0:00:17.4]} 26. c5 {[%clk 0:00:10.7]} 26... dxc5
{[%clk 0:00:16.7]} 27. Bxc5 {[%clk 0:00:10.9]} 27... Rb5 {[%clk 0:00:17.4]} 28.
Bxe7+ {[%clk 0:00:10.7]} 28... Kg8 {[%clk 0:00:15.3]} 29. Nc4 {[%clk 0:00:06.3]}
29... Rxd5 {[%clk 0:00:15.3]} 30. Ba3 {[%clk 0:00:06]} 30... Nf6 {[%clk
0:00:15.5]} 31. Bb2 {[%clk 0:00:05.7]} 31... Rf7 {[%clk 0:00:15.1]} 32. Ne3
{[%clk 0:00:04.4]} 32... Rb5 {[%clk 0:00:12.9]} 33. Ba1 {[%clk 0:00:04.6]} 33...
Bd7 {[%clk 0:00:13]} 34. Nc4 {[%clk 0:00:04.7]} 34... Nd5 {[%clk 0:00:12.3]} 35.
Ne5 {[%clk 0:00:05.1]} 35... Re7 {[%clk 0:00:12.2]} 36. Nxd7 {[%clk 0:00:05.4]}
36... Rxd7 {[%clk 0:00:12.7]} 37. Re5 {[%clk 0:00:05.4]} 37... f4 {[%clk
0:00:12.3]} 38. h4 {[%clk 0:00:05.1]} 38... gxh4 {[%clk 0:00:12]} 39. Rh5 {[%clk
0:00:03.6]} 39... Kh7 {[%clk 0:00:11.6]} 40. Kh2 {[%clk 0:00:02.5]} 40... Kg6
{[%clk 0:00:11.9]} 41. Rhe5 {[%clk 0:00:02.1]} 41... h5 {[%clk 0:00:12.8]} 42.
Re6+ {[%clk 0:00:02]} 42... Kf7 {[%clk 0:00:11.2]} 43. Rxa6 {[%clk 0:00:02.9]}
43... Rb6 {[%clk 0:00:08.7]} 44. Rxb6 {[%clk 0:00:02.9]} 44... Nxb6 {[%clk
0:00:09.6]} 45. Be5 {[%clk 0:00:02.6]} 45... Rd2 {[%clk 0:00:07.9]} 46. Bxf4
{[%clk 0:00:02.7]} 46... Rxa2 {[%clk 0:00:08.1]} 47. Re5 {[%clk 0:00:03.2]}
47... Nc4 {[%clk 0:00:06.6]} 48. Rxh5 {[%clk 0:00:03.7]} 48... Nb2 {[%clk
0:00:05.3]} 49. Rxh4 {[%clk 0:00:03.8]} 49... Nd3 {[%clk 0:00:06]} 50. Be3
{[%clk 0:00:03.5]} 50... Ne1 {[%clk 0:00:06.2]} 51. Rg4 {[%clk 0:00:04.1]} 51...
Kf6 {[%clk 0:00:06.2]} 52. Kh3 {[%clk 0:00:03.6]} 52... Re2 {[%clk 0:00:06.3]}
53. Bf4 {[%clk 0:00:03.1]} 53... Kf5 {[%clk 0:00:06.6]} 54. Bh2 {[%clk 0:00:03]}
54... Nd3 {[%clk 0:00:05]} 55. Ra4 {[%clk 0:00:03.3]} 55... Ne1 {[%clk
0:00:04.3]} 56. Ra5+ {[%clk 0:00:03.3]} 56... Kf6 {[%clk 0:00:04.6]} 57. g4
{[%clk 0:00:03.1]} 57... Nxf3 {[%clk 0:00:03.4]} 58. Rf5+ {[%clk 0:00:02.9]}
58... Kg6 {[%clk 0:00:01.2]} 59. Rxf3 {[%clk 0:00:03.3]} 59... Re4 {[%clk
0:00:01.3]} 60. Kg3 {[%clk 0:00:03.7]} 60... Re1 {[%clk 0:00:01.4]} 61. Kg2
{[%clk 0:00:03.1]} 61... Re2+ {[%clk 0:00:01.8]} 62. Kh3 {[%clk 0:00:02.7]}
62... Rd2 {[%clk 0:00:01.7]} 63. Bf4 {[%clk 0:00:03]} 63... Rd1 {[%clk
0:00:02.1]} 64. Kg3 {[%clk 0:00:03.6]} 64... Rh1 {[%clk 0:00:02.5]} 65. Rf2
{[%clk 0:00:03.4]} 65... Rg1+ {[%clk 0:00:02.9]} 66. Rg2 {[%clk 0:00:03.9]}
66... Re1 {[%clk 0:00:03.5]} 67. Rd2 {[%clk 0:00:03.7]} 67... Rg1+ {[%clk
0:00:03.6]} 68. Kf3 {[%clk 0:00:03.9]} 68... Rf1+ {[%clk 0:00:04.1]} 69. Ke4
{[%clk 0:00:04.4]} 69... Re1+ {[%clk 0:00:04.1]} 70. Be3 {[%clk 0:00:05.1]}
70... Rf1 {[%clk 0:00:03.4]} 71. Rd6+ {[%clk 0:00:05.5]} 71... Kf7 {[%clk
0:00:04]} 72. Ke5 {[%clk 0:00:05.5]} 72... Re1 {[%clk 0:00:04.1]} 73. Kf4 {[%clk
0:00:05.2]} 73... Rf1+ {[%clk 0:00:04.4]} 74. Kg5 {[%clk 0:00:05.7]} 74... Re1
{[%clk 0:00:04.9]} 75. Bf4 {[%clk 0:00:06.3]} 75... Re4 {[%clk 0:00:03.6]} 76.
Kf5 {[%clk 0:00:06.7]} 76... Re1 {[%clk 0:00:02.4]} 77. Rd7+ {[%clk 0:00:07.2]}
77... Ke8 {[%clk 0:00:02.5]} 78. Ra7 {[%clk 0:00:07.5]} 78... Kf8 {[%clk
0:00:01.7]} 79. Kf6 {[%clk 0:00:07]} 1-0

[Event "Early-Titled-Tuesday-Blitz-February-13-2024"]
[Site "Chess.com"]
[Date "2024.02.13"]
[Round "5"]
[White "RandomNoob04"]
[Black "HeroWilczek"]
[Result "0-1"]
[WhiteElo "2604"]
[BlackElo "2485"]
[TimeControl "180+1"]
[EndTime "9:01:46 PST"]
[Termination "HeroWilczek won by resignation"]

1. e4 {[%clk 0:03:00.9]} 1... e6 {[%clk 0:02:59.4]} 2. d4 {[%clk 0:03:01.1]}
2... d5 {[%clk 0:03:00.1]} 3. e5 {[%clk 0:03:02]} 3... c5 {[%clk 0:03:00]} 4. c3
{[%clk 0:03:02.7]} 4... Nc6 {[%clk 0:03:00.7]} 5. Nf3 {[%clk 0:03:03.4]} 5...
Qb6 {[%clk 0:03:01.2]} 6. Bd3 {[%clk 0:03:04.1]} 6... cxd4 {[%clk 0:03:01.9]} 7.
cxd4 {[%clk 0:03:05]} 7... Bd7 {[%clk 0:03:00.3]} 8. O-O {[%clk 0:03:05.7]} 8...
Nxd4 {[%clk 0:02:58.1]} 9. Nxd4 {[%clk 0:03:06.6]} 9... Qxd4 {[%clk 0:02:58.5]}
10. Nc3 {[%clk 0:03:07.5]} 10... a6 {[%clk 0:02:57.2]} 11. Qe2 {[%clk
0:03:07.5]} 11... Qb6 {[%clk 0:02:51.7]} 12. Kh1 {[%clk 0:03:00.3]} 12... Bc5
{[%clk 0:02:40.1]} 13. f4 {[%clk 0:02:53]} 13... Ne7 {[%clk 0:02:39.7]} 14. f5
{[%clk 0:02:44.5]} 14... exf5 {[%clk 0:02:31.4]} 15. Bg5 {[%clk 0:02:40]} 15...
Be6 {[%clk 0:02:24.1]} 16. Na4 {[%clk 0:02:04.6]} 16... Qa5 {[%clk 0:02:19]} 17.
Nxc5 {[%clk 0:02:04.6]} 17... Qxc5 {[%clk 0:02:15.3]} 18. Rac1 {[%clk
0:02:05.3]} 18... Qb4 {[%clk 0:02:03.9]} 19. Rf4 {[%clk 0:01:17.5]} 19... d4
{[%clk 0:01:43.8]} 20. a3 {[%clk 0:01:11.9]} 20... Qb6 {[%clk 0:01:40.5]} 21.
Bxe7 {[%clk 0:01:10.7]} 21... Kxe7 {[%clk 0:01:41.4]} 22. Bxf5 {[%clk
0:01:09.1]} 22... Rac8 {[%clk 0:01:38.1]} 23. Rcf1 {[%clk 0:01:08.8]} 23... Rhf8
{[%clk 0:01:27.8]} 24. Qf2 {[%clk 0:00:59.1]} 24... Bxf5 {[%clk 0:01:12.9]} 25.
Rxf5 {[%clk 0:00:59]} 25... Qe6 {[%clk 0:01:09.7]} 26. h3 {[%clk 0:00:32.1]}
26... Rcd8 {[%clk 0:01:01.7]} 27. Qh4+ {[%clk 0:00:25.2]} 27... Ke8 {[%clk
0:01:00]} 28. R5f2 {[%clk 0:00:13.9]} 28... d3 {[%clk 0:00:56.7]} 29. Rd2 {[%clk
0:00:13.6]} 29... Qe7 {[%clk 0:00:29]} 30. Qe4 {[%clk 0:00:12.8]} 30... g6
{[%clk 0:00:26.7]} 31. Rxd3 {[%clk 0:00:10.2]} 31... Rxd3 {[%clk 0:00:27.3]} 32.
Qxd3 {[%clk 0:00:11.1]} 32... Qd7 {[%clk 0:00:27.9]} 33. Qf3 {[%clk 0:00:08]}
33... Qc6 {[%clk 0:00:25.9]} 34. Qg3 {[%clk 0:00:06.1]} 34... Kd7 {[%clk
0:00:20.9]} 35. Rd1+ {[%clk 0:00:05.4]} 35... Kc7 {[%clk 0:00:20.5]} 36. e6+
{[%clk 0:00:05.7]} 36... Kc8 {[%clk 0:00:17.7]} 37. e7 {[%clk 0:00:06]} 37...
Re8 {[%clk 0:00:16.8]} 38. Qg4+ {[%clk 0:00:05.8]} 38... Qe6 {[%clk 0:00:14.7]}
39. Rc1+ {[%clk 0:00:05.2]} 39... Kb8 {[%clk 0:00:13.9]} 40. Qf4+ {[%clk
0:00:05.8]} 40... Ka8 {[%clk 0:00:13]} 41. Rc7 {[%clk 0:00:02.7]} 41... Rxe7
{[%clk 0:00:09.9]} 42. Rc1 {[%clk 0:00:03.4]} 42... Qe5 {[%clk 0:00:09.8]} 43.
Rc8+ {[%clk 0:00:03]} 43... Ka7 {[%clk 0:00:09.6]} 44. Qf2+ {[%clk 0:00:03.9]}
44... Qe3 {[%clk 0:00:09.9]} 45. Qf6 {[%clk 0:00:03]} 45... Qe1+ {[%clk
0:00:09.7]} 46. Kh2 {[%clk 0:00:03.7]} 46... Qe5+ {[%clk 0:00:10.3]} 47. Qxe5
{[%clk 0:00:04.4]} 47... Rxe5 {[%clk 0:00:11.2]} 48. Rc7 {[%clk 0:00:05.3]}
48... Rf5 {[%clk 0:00:10.2]} 49. b4 {[%clk 0:00:05]} 49... h5 {[%clk 0:00:10.4]}
50. Re7 {[%clk 0:00:04.6]} 50... Kb6 {[%clk 0:00:10.7]} 51. Kg3 {[%clk
0:00:05.2]} 51... Rf6 {[%clk 0:00:09.5]} 52. Kh4 {[%clk 0:00:05.4]} 52... Kc6
{[%clk 0:00:09.6]} 53. Kg5 {[%clk 0:00:05.9]} 53... Rf2 {[%clk 0:00:09.9]} 54.
g4 {[%clk 0:00:06.4]} 54... hxg4 {[%clk 0:00:10.5]} 55. hxg4 {[%clk 0:00:07.3]}
55... Rf3 {[%clk 0:00:10.6]} 56. a4 {[%clk 0:00:07.1]} 56... b5 {[%clk 0:00:09]}
57. a5 {[%clk 0:00:06.9]} 57... Rb3 {[%clk 0:00:07.4]} 58. Rxf7 {[%clk
0:00:06.2]} 58... Rxb4 {[%clk 0:00:08]} 59. Rf6+ {[%clk 0:00:06.9]} 59... Kb7
{[%clk 0:00:08.2]} 60. Rb6+ {[%clk 0:00:04.4]} 60... Ka7 {[%clk 0:00:08.2]} 61.
Rxg6 {[%clk 0:00:04.9]} 61... Ra4 {[%clk 0:00:08.4]} 62. Rg7+ {[%clk 0:00:04.3]}
62... Kb8 {[%clk 0:00:09]} 63. Kf6 {[%clk 0:00:04.2]} 63... Rxa5 {[%clk
0:00:08.6]} 64. g5 {[%clk 0:00:04.9]} 64... Ra1 {[%clk 0:00:08.6]} 65. Rf7
{[%clk 0:00:03.6]} 65... Rg1 {[%clk 0:00:06.7]} 66. g6 {[%clk 0:00:04]} 66... b4
{[%clk 0:00:07.2]} 67. g7 {[%clk 0:00:04.4]} 67... a5 {[%clk 0:00:06]} 68. Rf8+
{[%clk 0:00:02]} 68... Kb7 {[%clk 0:00:06.3]} 69. g8=Q {[%clk 0:00:02.9]} 69...
Rxg8 {[%clk 0:00:06.2]} 70. Rxg8 {[%clk 0:00:03.8]} 70... Kb6 {[%clk 0:00:06.7]}
71. Rb8+ {[%clk 0:00:03.6]} 71... Kc5 {[%clk 0:00:06.7]} 72. Ke5 {[%clk
0:00:04.2]} 72... Kc4 {[%clk 0:00:06.6]} 73. Ra8 {[%clk 0:00:03.8]} 73... b3
{[%clk 0:00:05.2]} 74. Rb8 {[%clk 0:00:02.2]} 74... a4 {[%clk 0:00:03.5]} 75.
Ke4 {[%clk 0:00:02.9]} 75... Kc3 {[%clk 0:00:03.5]} 76. Ke3 {[%clk 0:00:02.2]}
76... a3 {[%clk 0:00:04]} 77. Rc8+ {[%clk 0:00:02.3]} 77... Kb2 {[%clk
0:00:04.5]} 78. Kd2 {[%clk 0:00:02.9]} 78... a2 {[%clk 0:00:05]} 79. Ra8 {[%clk
0:00:01.7]} 79... a1=Q {[%clk 0:00:04.8]} 80. Rb8 {[%clk 0:00:02.4]} 80... Qc1+
{[%clk 0:00:04.6]} 0-1